bitfinex-derivatives/quotes_ETHF0:USTF0_20250410
["timestamp","ask_amount","ask_price","bid_price","bid_amount"]
[1744305215289,1.33744,1496.4,1496.3,1.33746]
[1744305215595,8.29768,1496.5,1496.4,1.33744]
[1744305215796,3.2078,1496.6,1496.5,1.33736]
[1744305215992,3.2078,1496.6,1496.1,40.80667266]
[1744305215993,3.3434,1496.5,1496.1,40.80667266]
[1744305216184,1.33762,1496.2,1496.1,0.00667266]
[1744305216500,13.65642,1496.2,1496.1,2.66e-06]
[1744305216694,18.65642,1496.2,1496.1,2.66e-06]
[1744305216898,1.33825,1495.5,1495.4,1.3383]
[1744305217092,9.086,1495.8,1495.4,6.55366]
[1744305217298,9.086,1495.8,1495.5,51.05783]
[1744305217299,1.338,1495.8,1495.5,51.05783]
[1744305217502,8.29827,1495.9,1495.5,51.05783]
[1744305217703,13.63257,1496.1,1495.5,51.05777]
[1744305217899,8.29796,1496.2,1496.0,1.33779]
[1744305218201,0.01000901,1495.9,1495.8,8.44465]
[1744305218700,0.01000901,1495.9,1495.8,13.44465]
[1744305220903,1.34789901,1495.9,1495.8,7.1067]
[1744305221097,1.34789901,1495.9,1495.8,8.44468]
[1744305221296,1.34789901,1495.9,1495.8,7.1067]
[1744305221509,1.34789901,1495.9,1495.8,8.44468]
[1744305221801,1.34789901,1495.9,1495.8,7.1067]
[1744305222410,0.01000901,1495.9,1495.8,8.44468]
[1744305222714,0.01000901,1495.9,1495.8,16.65248]
[1744305223905,1.34789901,1495.9,1495.8,7.1067]
[1744305224097,0.01000901,1495.9,1495.8,8.44468]
[1744305224302,1.34789901,1495.9,1495.8,8.44468]
[1744305224505,0.01000901,1495.9,1495.8,8.44468]
[1744305225108,1.34789901,1495.9,1495.8,8.44468]
[1744305225312,1.34789901,1495.9,1495.8,7.1067]
[1744305225607,1.33858,1495.2,1495.1,1.33855]
[1744305225800,3.2078,1495.7,1495.1,10.0852]
[1744305226006,1.33846,1495.3,1495.1,6.8774]
[1744305226201,1.33846,1495.3,1495.2,40.8]
[1744305226412,1.33846,1495.3,1495.2,42.13852]
[1744305226806,1.33869,1495.1,1495.0,1.33865]
[1744305227005,1.33866,1495.1,1495.0,1.33867]
[1744305227316,1.33866,1495.1,1495.0,42.13867]
[1744305227514,1.33866,1495.1,1495.0,40.8]
[1744305227807,3.2078,1495.3,1495.0,42.13864]
[1744305228001,1.33857,1495.2,1495.1,8.78989]
[1744305228408,6.9703,1495.3,1495.0,40.8]
[1744305228811,6.9703,1495.3,1495.1,1.33861]
[1744305228812,1.33852,1495.2,1495.1,1.33861]
[1744305229006,1.33852,1495.2,1495.1,8.78991]
[1744305229315,1.33852,1495.2,1495.1,7.4513]
[1744305229610,1.33852,1495.2,1495.1,8.78991]
[1744305230010,6.9703,1495.3,1495.1,7.4513]
[1744305230217,1.33836,1495.4,1495.3,1.33836]
[1744305230407,9.089,1495.5,1495.1,10.79782]
[1744305230610,1.33836,1495.4,1495.3,1.33836]
[1744305230809,1.33846,1495.3,1495.2,1.33846]
[1744305231009,1.33851,1495.3,1495.2,1.33851]
[1744305231321,1.33857,1495.2,1495.1,1.33859]
[1744305231516,19.7481,1495.5,1495.1,3.3465]
[1744305231716,1.33848,1495.3,1495.2,1.33848]
[1744305232220,1.33843,1495.3,1495.0,44.14674]
[1744305232416,1.33841,1495.4,1495.3,1.33839]
[1744305232618,1.33856,1495.2,1495.0,44.14674]
[1744305232807,8.78965,1495.4,1495.3,1.33843]
[1744305233012,4.54615,1495.5,1495.4,1.33834]
[1744305233311,4.54615,1495.5,1495.3,1.33838]
[1744305233312,1.3384,1495.4,1495.3,1.33838]
[1744305233508,3.34586,1495.4,1495.2,1.33849]
[1744305233709,1.33843,1495.3,1495.2,1.33849]
[1744305233908,1.33856,1495.2,1495.1,1.33852]
[1744305234110,1.33861,1495.1,1495.0,42.13861]
[1744305234616,14.09255,1495.3,1495.0,42.13861]
[1744305234617,1.33851,1495.3,1495.2,1.33848]
[1744305235313,8.7385,1495.4,1495.3,1.33843]
[1744305235820,8.7385,1495.4,1495.0,47.35454]
[1744305235821,1.33852,1495.3,1495.2,1.33849]
[1744305236622,1.33842,1495.4,1495.3,1.33843]
[1744305237627,1.33851,1495.3,1495.2,1.33848]
[1744305238016,1.33839,1495.4,1495.3,1.33836]
[1744305238216,1.33847,1495.3,1495.2,1.33845]
[1744305238411,1.33849,1495.3,1495.2,1.33846]
[1744305238618,1.33834,1495.4,1495.3,1.33843]
[1744305238819,1.33848,1495.3,1495.2,1.33845]
[1744305239217,1.33842,1495.4,1495.3,1.33838]
[1744305239516,1.33851,1495.3,1495.2,1.33845]
[1744305240220,1.33852,1495.2,1495.1,7.33055]
[1744305240627,8.55442,1495.3,1495.2,1.33852]
[1744305241127,1.33852,1495.2,1495.1,7.33056]
[1744305241427,3.34567,1495.5,1495.3,1.33836]
[1744305241629,2.6745,1495.6,1495.4,3.2078]
[1744305241817,2.6745,1495.6,1495.5,1.33825]
[1744305242022,2.65448198,1495.6,1495.5,1.33825]
[1744305242218,7.22590901,1495.9,1495.8,1.33798]
[1744305242425,10.35968192,1496.3,1496.0,1.3378]
[1744305242623,10.35968192,1496.3,1496.0,7.3298]
[1744305242926,1.33771,1496.1,1496.0,49.9998]
[1744305243123,1.33771,1496.1,1496.0,44.0078]
[1744305243327,1.33771,1496.1,1496.0,42.1378]
[1744305243524,1.33771,1496.1,1496.0,40.8]
[1744305243829,7.33770901,1496.2,1496.0,40.8]
[1744305243830,17.69739093,1496.2,1496.0,40.8]
[1744305244031,1.33771,1496.1,1496.0,42.13778]
[1744305244328,1.33771,1496.1,1496.0,42.1378]
[1744305244529,8.66541,1496.1,1496.0,40.8]
[1744305246425,8.66541,1496.1,1496.0,42.1378]
[1744305246618,10.36969093,1496.2,1495.9,0.01000901]
[1744305246823,11.70736093,1496.2,1496.1,1.33771]
[1744305247025,10.36969093,1496.2,1496.1,45.34551]
[1744305247223,10.36969093,1496.2,1496.1,50.34551]
[1744305247926,10.36969093,1496.2,1496.1,42.13771]
[1744305248128,0.01000901,1496.2,1496.1,45.34551]
[1744305248426,0.01000901,1496.2,1496.1,42.13771]
[1744305248929,0.01000901,1496.2,1496.1,47.13771]
[1744305249230,0.01000901,1496.2,1496.1,50.34551]
[1744305249528,0.01000901,1496.2,1496.1,40.8]
[1744305249828,1.34762901,1496.2,1496.1,40.8]
[1744305250131,1.34762901,1496.2,1496.1,42.13771]
[1744305250326,0.01000901,1496.2,1496.1,42.13771]
[1744305250627,1.34762901,1496.2,1496.1,40.8]
[1744305251131,1.34762901,1496.2,1496.1,42.13771]
[1744305251427,1.34762901,1496.2,1496.1,40.8]
[1744305252032,1.3378,1496.0,1495.9,0.01000901]
[1744305254019,0.01000901,1496.2,1495.9,5.01000901]
[1744305254235,1.33771,1496.1,1496.0,8.43903]
[1744305254434,0.01000901,1496.2,1496.0,8.43905]
[1744305254628,0.01000901,1496.2,1496.1,1.33771]
[1744305255125,0.01000901,1496.2,1496.0,10.3091]
[1744305255329,0.01000901,1496.2,1496.1,1.33771]
[1744305255528,0.01000901,1496.2,1496.0,8.43903]
[1744305255729,1.33771,1496.1,1496.0,7.1013]
[1744305256421,1.3378,1496.0,1495.9,0.01000901]
[1744305256622,8.7237,1496.0,1495.9,0.01000901]
[1744305257023,22.7827,1496.0,1495.9,9.01e-06]
[1744305257233,3.34581,1495.5,1495.1,13.44904584]
[1744305257430,1.33843,1495.3,1495.2,7.2263]
[1744305257622,1.33843,1495.3,1495.2,40.8]
[1744305257825,8.71263,1495.3,1495.2,40.8]
[1744305258230,1.33852,1495.2,1495.1,10.24124584]
[1744305258429,4.54632,1495.2,1495.1,10.24124584]
[1744305258626,4.54632,1495.2,1495.1,51.04124584]
[1744305258936,1.33846,1495.3,1495.1,51.04124584]
[1744305259137,1.33852,1495.2,1495.1,51.04124584]
[1744305259438,4.54632,1495.2,1495.1,51.04124584]
[1744305259735,9.54632,1495.2,1495.1,7.14901584]
[1744305260032,3.34693,1495.0,1494.8,40.8]
[1744305260232,3.2078,1494.9,1494.8,42.13888]
[1744305260530,102.00100901,1495.4,1495.2,1.33852]
[1744305260531,3.2078,1495.3,1495.2,1.33852]
[1744305260733,0.01000901,1495.4,1495.0,3.2078]
[1744305260936,0.01000901,1495.4,1495.0,6.55454]
[1744305261231,1.33845,1495.3,1495.0,3.2078]
[1744305261432,1.33852,1495.2,1495.1,1.33858]
[1744305261738,3.21780901,1495.4,1495.3,1.33843]
[1744305261931,0.01000901,1495.4,1495.3,1.33843]
[1744305262931,1.34834901,1495.4,1495.3,1.33843]
[1744305263133,0.01000901,1495.4,1495.3,1.33843]
[1744305263531,1.34834901,1495.4,1495.3,1.33843]
[1744305263729,0.01000901,1495.4,1495.3,1.33843]
[1744305264036,0.01000901,1495.4,1495.1,5.992]
[1744305264037,1.34842901,1495.4,1495.1,5.992]
[1744305264237,0.01000901,1495.4,1495.1,5.992]
[1744305264424,1.33852,1495.2,1495.1,5.992]
[1744305264629,8.2078,1495.2,1494.4,9.1998]
[1744305264933,3.2078,1494.8,1494.4,12.54788]
[1744305265133,1.33889,1494.8,1494.7,1.33891]
[1744305265335,1.33899,1494.7,1494.6,1.339]
[1744305265535,1.33905,1494.7,1494.5,42.13909]
[1744305265736,1.33903,1494.7,1494.6,1.33906]
[1744305266131,7.0644,1494.9,1494.5,40.8]
[1744305266333,1.33899,1494.7,1494.6,1.33901]
[1744305266536,8.40323,1494.9,1494.8,1.33888]
[1744305266738,8.40323,1494.9,1494.6,3.34764]
[1744305266739,1.33896,1494.8,1494.7,1.33897]
[1744305267132,1.33899,1494.7,1494.6,1.339]
[1744305267335,7.0644,1494.9,1494.5,40.8]
[1744305267537,1.33906,1494.6,1494.5,40.8]
[1744305267932,8.88596,1494.6,1494.5,42.13915]
[1744305268137,3.2078,1495.2,1494.6,1.33906]
[1744305268333,1.3388,1494.9,1494.6,1.33906]
[1744305268533,8.88556,1495.1,1494.5,49.9998]
[1744305268735,8.88556,1495.1,1495.0,1.3387]
[1744305269135,1.33858,1495.2,1494.8,3.34718]
[1744305269441,17.90658192,1495.3,1495.2,1.33852]
[1744305269640,11.69811192,1495.3,1495.2,1.33852]
[1744305269828,10.35968192,1495.3,1495.2,1.33852]
[1744305270243,11.69811192,1495.3,1495.2,1.33852]
[1744305270430,10.35968192,1495.3,1495.2,1.33852]
[1744305271539,18.56748192,1495.3,1494.6,5.992]
[1744305271737,6.55542,1494.7,1494.2,8.0595]
[1744305271936,1.33906,1494.6,1494.5,1.33909]
[1744305272137,4.54682,1494.7,1494.6,1.33906]
[1744305272443,0.01000901,1494.7,1494.5,1.3391]
[1744305272638,1.34902901,1494.7,1494.5,1.3391]
[1744305272832,1.34901901,1494.7,1494.4,44.0078]
[1744305273138,1.34901901,1494.7,1494.5,1.33908]
[1744305273339,1.33906,1494.6,1494.5,1.33908]
[1744305273946,0.01000901,1494.7,1494.6,1.33906]
[1744305274246,1.34897901,1494.7,1494.6,3.2078]
[1744305274839,0.01000901,1494.7,1494.6,4.54686]
[1744305275044,0.01000901,1494.7,1494.5,1.33909]
[1744305275350,0.01000901,1494.7,1494.6,10.53886]
[1744305275847,0.01000901,1494.7,1494.6,15.53886]
[1744305276047,0.01000901,1494.7,1494.4,49.9998]
[1744305276249,1.33909,1494.6,1494.5,4.5469]
[1744305276440,0.01000901,1494.7,1494.5,4.5469]
[1744305276441,0.01000901,1494.7,1494.6,1.33906]
[1744305276743,11.36410598,1495.2,1494.8,3.3472]
[1744305276941,11.36410598,1495.2,1495.1,1.33861]
[1744305277242,11.36410598,1495.2,1494.8,12.54698]
[1744305277448,1.33872,1495.0,1494.7,19.81752]
[1744305277644,1.33872,1495.0,1494.9,1.33873]
[1744305277947,1.33882,1494.9,1494.8,1.33881]
[1744305278350,7.02480901,1495.0,1494.7,11.26890901]
[1744305278646,1.3388,1494.9,1494.8,1.3388]
[1744305278844,7.02480901,1495.0,1494.9,1.33879]
[1744305279049,9.01e-06,1495.0,1494.9,7.33079]
[1744305279349,12.74546318,1495.4,1495.3,1.33843]
[1744305279649,12.74546318,1495.4,1495.3,4.54623]
[1744305279843,12.74546318,1495.4,1495.3,9.54623]
[1744305280044,12.74546318,1495.4,1495.3,1.33843]
[1744305280239,12.74546318,1495.4,1495.3,4.54623]
[1744305280642,12.74546318,1495.4,1495.3,9.54623]
[1744305280842,0.01000901,1495.5,1495.4,1.33834]
[1744305281837,1.34825901,1495.5,1495.4,1.33834]
[1744305282037,8.35572901,1495.5,1495.2,5.992]
[1744305282242,1.33843,1495.3,1495.2,5.992]
[1744305282443,1.33843,1495.3,1495.2,7.33052]
[1744305282644,7.1872,1495.4,1495.0,5.992]
[1744305282844,1.33854,1495.2,1495.1,1.33856]
[1744305283051,7.1872,1495.4,1494.9,17.50776]
[1744305283052,1.33848,1495.3,1495.2,1.33849]
[1744305283246,17.08691,1495.4,1494.9,9.1998]
[1744305283447,7.1872,1495.2,1495.1,1.33861]
[1744305284450,7.1872,1495.3,1494.9,5.992]
[1744305284751,1.33888,1494.8,1494.7,0.01000901]
[1744305285354,4.54668,1494.8,1494.7,0.01000901]
[1744305285652,3.2078,1494.8,1494.7,1.34897901]
[1744305285853,13.95685,1494.9,1494.7,0.01000901]
[1744305286052,1.33888,1494.8,1494.7,0.01000901]
[1744305286253,5.1328,1494.9,1494.7,0.01000901]
[1744305286452,1.33888,1494.8,1494.7,1.34891901]
[1744305286653,1.33888,1494.8,1494.7,0.01000901]
[1744305286950,13.82408,1494.8,1494.7,0.01000901]
[1744305287657,8.82408,1494.8,1494.7,0.01000901]
[1744305288349,13.82408,1494.8,1494.7,0.01000901]
[1744305288750,1.3394,1494.3,1494.0,24.20161201]
[1744305288956,1.3394,1494.3,1494.1,40.8]
[1744305289150,7.1002,1494.5,1494.2,3.34854]
[1744305289355,7.1002,1494.5,1494.2,3.2078]
[1744305289356,1.3392,1494.5,1494.2,3.2078]
[1744305289556,1.33915,1494.5,1494.3,1.33929]
[1744305289756,7.1002,1494.4,1494.3,1.33929]
[1744305289956,7.1002,1494.4,1494.3,1.34929901]
[1744305290252,4.55701901,1494.5,1494.4,1.33923]
[1744305290253,1.34915901,1494.5,1494.4,1.33923]
[1744305290861,1.33923,1494.4,1494.3,1.34926901]
[1744305291048,8.25613,1494.4,1494.3,1.34926901]
[1744305291249,11.46393,1494.4,1494.3,0.01000901]
[1744305291452,1.33959,1494.0,1493.9,1.33963]
[1744305291655,6.55635,1494.2,1493.7,5.992]
[1744305291865,1.33968,1493.9,1493.8,8.23833]
[1744305292058,8.25643,1494.1,1494.0,1.33959]
[1744305292359,6.9169,1494.1,1494.0,1.33959]
[1744305292557,6.70600901,1494.5,1494.1,3.34872]
[1744305292558,1.34923901,1494.5,1494.1,3.34872]
[1744305292754,1.33938,1494.3,1494.1,6.8986]
[1744305292958,10.27479901,1494.5,1494.1,10.24735]
[1744305292959,6.92690901,1494.5,1494.1,10.24735]
[1744305293159,1.33933,1494.3,1494.2,1.33934]
[1744305293356,1.33933,1494.3,1494.2,8.23794]
[1744305293659,6.92690901,1494.5,1494.2,10.1064]
[1744305293860,0.01000901,1494.5,1494.4,4.54703]
[1744305294263,0.01000901,1494.5,1494.4,11.91503]
[1744305294957,0.01000901,1494.5,1494.4,8.70723]
[1744305295152,1.34915901,1494.5,1494.4,7.368]
[1744305295353,1.33936,1494.3,1494.0,6.55679]
[1744305295564,1.33941,1494.2,1494.1,7.368]
[1744305295862,1.33937,1494.3,1494.2,1.33937]
[1744305296070,6.91030901,1494.5,1494.1,7.368]
[1744305296260,6.91030901,1494.5,1494.1,10.71676]
[1744305296458,3.2078,1494.4,1494.1,7.368]
[1744305296659,6.9003,1494.3,1494.2,1.33941]
[1744305296859,0.01000901,1494.5,1494.4,1.33923]
[1744305297559,0.01000901,1494.5,1494.4,4.54703]
[1744305297766,0.01000901,1494.5,1494.4,10.53903]
[1744305299256,9.01e-06,1494.5,1494.4,15.53903]
[1744305299455,20.53758499,1495.5,1495.4,1.33834]
[1744305299660,20.53758499,1495.5,1494.7,3.34742]
[1744305299661,1.33836,1495.4,1495.0,6.55442]
[1744305299860,20.53758499,1495.5,1495.0,6.55442]
[1744305299861,20.53758499,1495.5,1495.4,1.33834]
[1744305300359,28.74538499,1495.5,1495.3,1.33839]
[1744305300567,7.4901,1495.4,1495.1,40.8]
[1744305300763,4.54632,1495.2,1495.1,40.8]
[1744305300961,3.34675,1495.0,1494.5,1.33908]
[1744305301262,1.33897,1494.7,1494.6,0.01000901]
[1744305301462,3.2078,1494.8,1494.6,0.01000901]
[1744305301658,1.34890901,1494.8,1494.6,0.01000901]
[1744305301964,1.34892901,1494.8,1494.6,0.01000901]
[1744305302159,3.2078,1494.7,1494.6,1.34906901]
[1744305302467,1.34888901,1494.8,1494.7,1.33897]
[1744305302968,1.33897,1494.7,1494.6,0.01000901]
[1744305303168,8.21780901,1494.8,1494.6,0.01000901]
[1744305303169,3.21780901,1494.8,1494.6,0.01000901]
[1744305303362,0.01000901,1494.8,1494.7,1.33897]
[1744305303572,0.01000901,1494.8,1494.3,3.2078]
[1744305303573,1.33932,1494.3,1494.2,15.00181201]
[1744305303964,4.54712,1494.3,1494.2,15.00181201]
[1744305304365,9.54712,1494.3,1494.2,15.00181201]
[1744305304563,4.54712,1494.3,1494.2,15.00181201]
[1744305304770,9.54712,1494.3,1494.2,15.00181201]
[1744305304975,1.33941,1494.2,1494.1,16.26765584]
[1744305305267,1.3395,1494.1,1494.0,25.17425431]
[1744305305569,3.35011,1493.5,1493.0,1.34047]
[1744305305774,3.2078,1493.3,1492.9,1.34055]
[1744305305972,3.2078,1493.0,1492.9,3.08011138]
[1744305306162,3.2078,1493.0,1492.2,31.14943475]
[1744305306163,1.34112,1492.3,1492.2,30.47903475]
[1744305306364,12.2388,1492.6,1492.3,3.08011138]
[1744305306669,1.34112,1492.3,1492.2,71.16246492]
[1744305306862,3.21784319,1492.6,1492.2,74.2425763]
[1744305307061,4.54879,1492.5,1492.2,83.4240863]
[1744305307259,4.54892,1492.3,1492.2,30.36246492]
[1744305307871,9.54892,1492.3,1492.2,30.36246492]
[1744305308068,3.2078,1492.3,1492.2,30.36246492]
[1744305308271,9.54892,1492.3,1492.2,30.36246492]
[1744305308867,3.2078,1492.3,1492.2,30.36246492]
[1744305309068,3.2078,1492.3,1492.2,31.70367492]
[1744305309276,3.2078,1492.3,1492.2,30.36246492]
[1744305309473,18.54792,1492.3,1492.2,15.18167243]
[1744305309667,18.54792,1492.3,1492.2,5.00537527]
[1744305309872,18.54792,1492.3,1492.2,2.18e-06]
[1744305310267,1.34121,1492.2,1492.1,28.22069568]
[1744305310777,6.34121,1492.2,1492.1,28.22069568]
[1744305310975,1.34121,1492.2,1492.1,28.22069568]
[1744305311175,6.34121,1492.2,1492.1,25.7221342]
[1744305311379,1.34139,1492.0,1491.9,25.03785661]
[1744305311671,1.34157,1491.8,1491.7,30.80649316]
[1744305311870,13.55237,1491.8,1491.7,30.80649316]
[1744305312481,13.55237,1491.8,1491.5,1.34182]
[1744305312666,7.7876,1491.9,1491.6,23.18651138]
[1744305312974,0.01004319,1491.9,1491.8,1.34157]
[1744305313473,0.01004319,1491.9,1491.8,29.52808138]
[1744305313679,9.06428,1492.6,1492.0,3.35343]
[1744305313880,7.7234,1492.6,1492.3,3.2078]
[1744305314183,1.34094,1492.5,1492.4,7.4043]
[1744305314379,1.34123,1492.2,1491.7,3.2078]
[1744305314575,7.7234,1492.4,1492.1,1.34124]
[1744305314877,1.34112,1492.3,1492.2,7.4043]
[1744305315068,1.34148,1491.9,1491.8,3.21784319]
[1744305315379,1.34148,1491.9,1491.8,10.62214319]
[1744305315679,7.7234,1492.2,1491.8,35.15016457]
[1744305315875,1.34134,1492.1,1491.9,1.34147]
[1744305316077,1.34148,1491.9,1491.8,0.01004319]
[1744305316583,18.55728,1491.9,1491.8,0.01004319]
[1744305317482,18.55728,1491.9,1491.3,3.2078]
[1744305317483,3.35431,1491.7,1491.3,3.2078]
[1744305317673,1.342,1491.4,1491.3,29.82596819]
[1744305317871,7.4803,1491.6,1491.3,29.82596819]
[1744305318477,1.34181,1491.6,1491.4,1.34193]
[1744305318688,0.01004319,1491.6,1491.4,30.52901138]
[1744305318990,15.57047,1491.5,1491.0,3.2078]
[1744305319186,10.9364,1491.4,1491.0,3.43165681]
[1744305319387,1.34211,1491.2,1491.1,7.3425]
[1744305319585,1.34211,1491.2,1491.0,1.34226]
[1744305319889,1.3422,1491.1,1491.0,3.2078]
[1744305320278,7.5815,1491.4,1491.0,25.01389085]
[1744305320484,10.93635,1491.4,1491.0,28.44554766]
[1744305320679,1.34213,1491.2,1491.0,25.23774766]
[1744305320883,1.34231,1491.0,1490.8,3.2078]
[1744305321080,1.34258,1490.7,1490.6,3.2078]
[1744305321285,1.34322,1490.0,1489.8,3.2078]
[1744305321584,3.35663,1490.6,1489.8,3.2078]
[1744305321585,1.34328,1489.9,1489.8,3.43165681]
[1744305321782,3.2078,1490.0,1489.8,3.43165681]
[1744305321978,3.2078,1490.0,1489.5,3.2078]
[1744305321979,3.21784319,1490.0,1489.5,3.2078]
[1744305322289,0.01004319,1490.0,1489.9,3.2078]
[1744305322586,0.01004319,1490.0,1489.9,4.55108]
[1744305322790,0.01004319,1490.0,1489.9,8.2078]
[1744305323094,4.2446644,1490.2,1490.0,1.34312]
[1744305323278,4.2446644,1490.2,1489.6,5.96653409]
[1744305323586,4.2446644,1490.2,1490.1,4.5509]
[1744305324090,4.2446644,1490.2,1490.0,4.7624]
[1744305324291,4.2446644,1490.2,1490.1,1.3431]
[1744305324490,0.01004319,1490.3,1490.2,1.34301]
[1744305324989,0.01004319,1490.3,1490.2,47.14301]
[1744305325486,0.01004319,1490.3,1490.2,40.8]
[1744305325790,0.01004319,1490.3,1490.2,6.34301]
[1744305326195,0.01004319,1490.3,1490.0,0.01004319]
[1744305326390,0.01004319,1490.3,1490.2,1.34301]
[1744305326790,0.01004319,1490.3,1490.2,53.13501]
[1744305326992,0.01004319,1490.3,1490.2,60.30491]
[1744305327401,0.01004319,1490.3,1490.2,54.31291]
[1744305327800,10.5911,1490.9,1490.6,1.34263]
[1744305327996,3.2078,1490.9,1490.7,7.5136]
[1744305328296,1.34241,1490.9,1490.7,8.85609]
[1744305328500,1.3423,1491.0,1490.7,7.5136]
[1744305328696,1.3423,1491.0,1490.8,1.34242]
[1744305328898,3.2078,1491.1,1490.9,7.5136]
[1744305329096,0.01004319,1491.0,1490.9,8.85598]
[1744305329595,1.35233319,1491.0,1490.9,7.5136]
[1744305329898,1.34238,1490.9,1490.8,0.01004319]
[1744305330091,11.73188,1490.9,1490.8,0.01004319]
[1744305330291,16.73188,1490.9,1490.8,0.01004319]
[1744305330497,16.73188,1490.9,1490.8,3.19e-06]
[1744305330694,1.34292,1490.3,1490.2,7.4537]
[1744305331093,1.34292,1490.3,1490.2,48.2537]
[1744305331403,1.34324,1490.0,1489.9,1.34328]
[1744305331602,1.34319,1490.0,1489.9,7.4537]
[1744305331789,1.34319,1490.0,1489.9,48.2537]
[1744305332098,1.34319,1490.0,1489.9,40.8]
[1744305332401,0.01004319,1490.1,1490.0,1.34319]
[1744305332594,0.01004319,1490.1,1490.0,8.79689]
[1744305332801,0.01004319,1490.1,1490.0,13.79689]
[1744305333701,0.01004319,1490.1,1490.0,8.79689]
[1744305334299,3.2078,1490.6,1490.5,1.34274]
[1744305334490,3.2078,1490.8,1490.7,1.34256]
[1744305334800,1.34238,1490.9,1490.8,1.34247]
[1744305334998,3.2078,1491.0,1490.8,7.1255]
[1744305335298,1.34247,1490.8,1490.7,40.8]
[1744305335499,4.55027,1490.8,1490.7,40.8]
[1744305335703,9.55027,1490.8,1490.7,40.8]
[1744305335892,1.34256,1490.7,1490.6,0.01004319]
[1744305336098,8.85306,1490.7,1490.6,3.19e-06]
[1744305336309,13.85306,1490.7,1490.6,3.19e-06]
[1744305341808,8.85306,1490.7,1490.6,3.19e-06]
[1744305342311,1.34256,1490.7,1490.6,3.19e-06]
[1744305342507,1.34256,1490.7,1490.6,8.46215319]
[1744305342809,1.34256,1490.7,1490.6,7.11950319]
[1744305343009,6.34256,1490.7,1490.6,3.19e-06]
[1744305343210,13.40626,1490.7,1490.6,3.19e-06]
[1744305343811,8.40626,1490.7,1490.6,3.19e-06]
[1744305344414,1.34256,1490.7,1490.6,3.19e-06]
[1744305344715,4.55033,1490.8,1490.6,1.34259319]
[1744305345017,8.40614,1490.9,1490.7,9.1225]
[1744305345315,12.21584319,1491.0,1490.7,9.12253]
[1744305345510,1.34245,1490.9,1490.8,1.34247]
[1744305345711,0.01004319,1491.0,1490.9,1.34238]
[1744305345919,1.35233319,1491.0,1490.9,1.34238]
[1744305346108,1.35233319,1491.0,1490.9,5.0]
[1744305346308,1.35233319,1491.0,1490.9,1.34238]
[1744305346309,3.21784319,1491.0,1490.9,1.34238]
[1744305346617,3.21784319,1491.0,1490.7,7.78]
[1744305346816,1.34247,1490.8,1490.7,9.12256]
[1744305347021,10.59414319,1491.0,1490.8,1.34246]
[1744305347313,4.56013319,1491.0,1490.9,8.96318]
[1744305347815,1.34254,1490.8,1490.6,3.19e-06]
[1744305348010,8.71874,1490.9,1490.7,7.6208]
[1744305348204,0.01004319,1491.0,1490.9,1.34238]
[1744305348409,4.6945,1491.1,1491.0,1.34229]
[1744305348618,4.6945,1491.1,1491.0,4.55009]
[1744305348809,20.86709626,1491.5,1491.0,15.8845]
[1744305349017,1.34212,1491.2,1491.1,40.8]
[1744305349217,1.34206,1491.3,1491.1,40.8]
[1744305349520,3.2078,1491.2,1491.1,40.8]
[1744305349724,8.45501,1491.2,1491.1,40.8]
[1744305350114,11.66281,1491.2,1491.1,40.8]
[1744305350414,13.67606,1491.2,1490.8,1.34242]
[1744305350613,3.2078,1491.0,1490.6,8.21745319]
[1744305350819,3.2078,1491.0,1490.9,42.14238]
[1744305351120,3.2078,1491.0,1490.9,45.8]
[1744305351320,8.45508,1491.2,1491.0,1.34223]
[1744305351715,1.3422,1491.1,1491.0,1.34223]
[1744305352020,4.55,1491.1,1491.0,1.34223]
[1744305352221,4.55,1491.1,1490.9,42.14231]
[1744305352418,3.2078,1491.1,1490.9,40.8]
[1744305352617,0.01004319,1491.3,1491.2,1.34211]
[1744305353119,4.54953,1491.7,1491.3,3.35505]
[1744305353419,4.54964,1491.5,1491.4,1.34187]
[1744305353616,3.2078,1491.5,1491.2,4.851]
[1744305353811,1.34197,1491.4,1491.3,1.34199]
[1744305354018,4.55974319,1491.5,1491.4,1.34193]
[1744305354224,4.55974319,1491.5,1491.3,1.34195]
[1744305354225,1.34193,1491.4,1491.3,1.34195]
[1744305354519,17.38520338,1491.5,1491.4,1.34193]
[1744305354720,16.04332338,1491.5,1491.2,8.21630319]
[1744305354921,12.83552338,1491.5,1491.4,1.34193]
[1744305355316,12.83552338,1491.5,1491.4,15.54173]
[1744305355514,12.83552338,1491.5,1491.4,12.33393]
[1744305355716,2.93041338,1491.5,1491.4,15.54173]
[1744305355916,1.34133,1492.1,1491.8,3.35393]
[1744305356221,3.2078,1492.2,1491.6,6.56216]
[1744305356222,4.54924,1492.0,1491.6,6.56216]
[1744305356421,3.2078,1492.0,1491.6,3.2078]
[1744305356721,4.54942,1491.8,1491.7,1.34163]
[1744305356911,3.2078,1491.8,1491.7,1.35167319]
[1744305357110,4.54937,1491.8,1491.7,0.01004319]
[1744305357321,4.54937,1491.8,1491.7,1.35170319]
[1744305357520,7.74814319,1491.9,1491.7,1.35170319]
[1744305357521,0.01004319,1491.9,1491.8,1.34157]
[1744305357926,3.19e-06,1491.9,1491.8,6.34157]
[1744305358115,3.19e-06,1491.9,1491.8,11.58897]
[1744305358311,3.19e-06,1491.9,1491.8,52.38897]
[1744305358517,3.19e-06,1491.9,1491.8,47.38897]
[1744305358814,3.19e-06,1491.9,1491.8,52.38897]
[1744305359019,3.19e-06,1491.9,1491.8,57.32627]
[1744305359220,3.19e-06,1491.9,1491.8,60.53407]
[1744305359416,3.19e-06,1491.9,1491.8,57.32627]
[1744305359616,3.19e-06,1491.9,1491.8,60.53407]
[1744305359824,3.19e-06,1491.9,1491.8,75.52007]
[1744305360018,15.40318874,1492.5,1492.4,1.34103]
[1744305360217,18.61098874,1492.5,1491.9,5.992]
[1744305360423,18.61098874,1492.5,1492.0,3.35348]